[Event "XII Paracin Festival 2019"]
[Site "Paracin"]
[Date "2019.07.09"]
[Round "6.2"]
[White "Ivanisevic, Ivan"]
[Black "Froewis, Georg"]
[Result "1-0"]
[ECO "D44"]
[WhiteElo "2612"]
[BlackElo "2434"]
[Annotator "RC"]
[PlyCount "75"]
[EventDate "2019.07.05"]
[EventType "swiss"]
[EventCountry "SRB"]
[SourceTitle "playchess.com"]
[Source "ChessBase"]
[SourceQuality "1"]
[TimeControl "5400+30"]

1. c4 {[%emt 0:00:52]} e6 {[%emt 0:00:00]} 2. Nc3 {[%emt 0:01:28]} d5 {[%emt 0:00:00]} 3. d4 {[%emt 0:00:06]} c6 {[%emt 0:00:00]} 4. Nf3 {[%emt 0:00:04]} Nf6 {[%emt 0:00:00]} 5. Bg5 {[%emt 0:00:06]} dxc4 {[%emt 0:00:00]} 6. a4 {[%emt 0:00:19]} Bb4 {[%emt 0:00:47]} 7. e4 {[%emt 0:00:08]} Qa5 {[%emt 0:00:47]} 8. Bd2 {[%emt 0:01:02]} c5 {[%emt 0:00:41]} 9. Bxc4 {[%emt 0:00:09]} cxd4 {[%emt 0:03:08]} 10. Nxd4 {[%emt 0:00:23]} O-O {[%emt 0:09:26]} 11. Nc2 {[%emt 0:06:26]} Bxc3 {[%emt 0:02:46]} 12. Bxc3 {[%emt 0:00:07]} Qg5 {[%emt 0:00:06]} 13. Qe2 {[%emt 0:11:06]} Nc6 {[%emt 0:01:25]} 14. O-O {[%emt 0:02:35]} e5 {[%emt 0:02:17]} 15. f3 {[%emt 0:02:39]} Nh5 {[%emt 0:02:21]} 16. Qe3 {[%emt 0:17:11]} Nf4 {[%emt 0:04:48]} 17. g3 {[%emt 0:00:48]} Bh3 {[%emt 0:08:41]} 18. Rf2 {[%emt 0:00:45]} Be6 {[%emt 0:02:45]} 19. Bf1 {[%emt 0:03:03]} f6 {[%emt 0:09:43]} 20. Kh1 {[%emt 0:05:46]} Nh3 {[%emt 0:00:44]} 21. Bxh3 {[%emt 0:00:12]} Bxh3 {[%emt 0:00:10]} 22. g4 {[%emt 0:01:21]} Qh4 {[%emt 0:05:10]} 23. Rg1 {[%emt 0:02:08]} h5 {[%emt 0:00:35]} 24. Be1 {[%emt 0:02:10]} hxg4 {[%emt 0:04:30]} 25. fxg4 {[%emt 0:00:51]} Nd4 {[%emt 0:00:34]} 26. Nxd4 {[%emt 0:01:16]} exd4 {[%emt 0:00:01]} 27. Qb3+ {[%emt 0:02:39]} Rf7 {[%emt 0:00:02]} 28. Rf3 {[%emt 0:01:03]} Bg2+ {[%emt 0:00:06]} 29. Kxg2 {[%emt 0:00:05]} Qxg4+ {[%emt 0:00:04]} 30. Kf1 {[%emt 0:01:54]} Qxe4 {[%emt 0:00:44]} 31. Rxg7+ {[%emt 0:00:15]} Kxg7 {[%emt 0:00:22]} 32. Rg3+ {[%emt 0:00:06]} Kh8 {[%emt 0:00:38]} 33. Qxf7 {[%emt 0:01:06]} Qh1+ {[%emt 0:00:03]} 34. Ke2 {[%emt 0:01:14]} Qxh2+ {[%emt 0:00:51]} 35. Kd1 {[%emt 0:01:21]} Qh6 {[%emt 0:00:32]} 36. Qg6 {[%emt 0:01:24]} Qxg6 {[%emt 0:00:25]} 37. Rxg6 {[%emt 0:00:06]} Rf8 {[%emt 0:00:03]} 38. Bf2 {[%emt 0:00:37]} 1-0

[Event "XII Paracin Festival 2019"]
[Site "Paracin"]
[Date "2019.07.09"]
[Round "6.3"]
[White "Lajthajm, Borko"]
[Black "Korpa, Bence"]
[Result "0-1"]
[ECO "B01"]
[WhiteElo "2424"]
[BlackElo "2523"]
[Annotator "ChessBase"]
[PlyCount "126"]
[EventDate "2019.07.05"]
[EventType "swiss"]
[EventCountry "SRB"]
[SourceTitle "playchess.com"]
[Source "ChessBase"]
[SourceQuality "1"]
[TimeControl "5400+30"]

1. e4 {[%emt 0:00:00]} d5 {[%emt 0:01:02]} 2. exd5 {[%emt 0:00:00]} Qxd5 {[%emt 0:00:07]} 3. Nc3 {[%emt 0:00:00]} Qd6 {[%emt 0:00:07]} 4. d4 {[%emt 0:00:32]} Nf6 {[%emt 0:00:10]} 5. Bc4 {[%emt 0:01:36]} c6 {[%emt 0:00:49]} 6. Nge2 {[%emt 0:00:17]} Bf5 {[%emt 0:01:43]} 7. Bf4 {[%emt 0:00:18]} Qd8 {[%emt 0:06:01]} 8. Ng3 {[%emt 0:05:14]} Bg6 {[%emt 0:00:16]} 9. h4 {[%emt 0:00:32]} h6 {[%emt 0:00:34]} 10. h5 {[%emt 0:02:43]} Bh7 {[%emt 0:00:05]} 11. Be5 {[%emt 0:01:01]} e6 {[%emt 0:01:36]} 12. a3 {[%emt 0:01:50]} Nbd7 {[%emt 0:01:05]} 13. Qe2 {[%emt 0:00:38]} Be7 {[%emt 0:01:05]} 14. O-O-O {[%emt 0:04:45]} O-O {[%emt 0:00:23]} 15. Bd3 {[%emt 0:01:18]} Qa5 {[%emt 0:02:16]} 16. Bxh7+ {[%emt 0:01:01]} Nxh7 {[%emt 0:00:10]} 17. Rd3 {[%emt 0:01:34]} Nxe5 {[%emt 0:05:32]} 18. dxe5 {[%emt 0:01:22]} Rad8 {[%emt 0:00:42]} 19. f4 {[%emt 0:00:54]} Rxd3 {[%emt 0:05:33]} 20. Qxd3 {[%emt 0:00:33]} Rd8 {[%emt 0:00:06]} 21. Qf3 {[%emt 0:01:15]} Bxa3 {[%emt 0:04:38]} 22. bxa3 {[%emt 0:00:36]} Qxa3+ {[%emt 0:00:07]} 23. Kb1 {[%emt 0:00:19]} Rd4 {[%emt 0:00:35]} 24. Na2 {[%emt 0:00:21]} Qxf3 {[%emt 0:00:08]} 25. gxf3 {[%emt 0:00:13]} Rxf4 {[%emt 0:00:07]} 26. Rd1 {[%emt 0:00:29]} Ng5 {[%emt 0:00:07]} 27. Rd8+ {[%emt 0:02:59]} Kh7 {[%emt 0:00:07]} 28. Rd7 {[%emt 0:02:52]} Rxf3 {[%emt 0:18:24]} 29. Ne2 {[%emt 0:01:35]} Re3 {[%emt 0:01:13]} 30. Nac1 {[%emt 0:01:34]} Rxe5 {[%emt 0:05:54]} 31. Nc3 {[%emt 0:00:03]} b5 {[%emt 0:13:03]} 32. Nd3 {[%emt 0:00:21]} Rf5 {[%emt 0:00:43]} 33. Rxa7 {[%emt 0:00:18]} g6 {[%emt 0:00:07]} 34. Ne2 {[%emt 0:03:06]} Ne4 {[%emt 0:08:11]} 35. hxg6+ {[%emt 0:00:35]} Kxg6 {[%emt 0:00:04]} 36. Nd4 {[%emt 0:00:12]} Rf1+ {[%emt 0:05:52]} 37. Kb2 {[%emt 0:00:13]} Ng5 {[%emt 0:01:31]} 38. Ne5+ {[%emt 0:01:40]} Kg7 {[%emt 0:00:34]} 39. Nexc6 {[%emt 0:00:31]} h5 {[%emt 0:00:06]} 40. Nxb5 {[%emt 0:01:37]} Rf4 {[%emt 0:00:41]} 41. Nd6 {[%emt 0:03:06]} h4 {[%emt 0:00:23]} 42. Nd8 {[%emt 0:01:23]} Kg6 {[%emt 0:03:39]} 43. N6xf7 {[%emt 0:00:57]} Nxf7 {[%emt 0:00:11]} 44. Nxe6 {[%emt 0:00:03]} Rg4 {[%emt 0:02:17]} 45. Ra3 {[%emt 0:04:08]} Kf5 {[%emt 0:01:41]} 46. Nc5 {[%emt 0:00:20]} Ne5 {[%emt 0:04:21]} 47. Ra8 {[%emt 0:03:04]} Rb4+ {[%emt 0:01:23]} 48. Kc1 {[%emt 0:03:20]} h3 {[%emt 0:00:04]} 49. Rh8 {[%emt 0:01:31]} Kg4 {[%emt 0:00:04]} 50. Kd2 {[%emt 0:07:49]} Kg3 {[%emt 0:00:10]} 51. Ke3 {[%emt 0:08:26]} Ng4+ {[%emt 0:01:20]} 52. Kd2 {[%emt 0:02:44]} h2 {[%emt 0:00:36]} 53. Nd3 {[%emt 0:00:12]} Rb6 {[%emt 0:01:28]} 54. Rxh2 {[%emt 0:04:18]} Nxh2 {[%emt 0:00:10]} 55. c4 {[%emt 0:00:03]} Kf3 {[%emt 0:00:30]} 56. c5 {[%emt 0:00:11]} Rb8 {[%emt 0:00:04]} 57. Kc3 {[%emt 0:00:11]} Ke4 {[%emt 0:00:07]} 58. Nb4 {[%emt 0:00:15]} Ng4 {[%emt 0:02:06]} 59. Na6 {[%emt 0:00:16]} Rc8 {[%emt 0:00:08]} 60. Kc4 {[%emt 0:01:07]} Ne5+ {[%emt 0:02:43]} 61. Kb5 {[%emt 0:00:09]} Kd4 {[%emt 0:00:19]} 62. Kb6 {[%emt 0:01:14]} Kc4 {[%emt 0:00:24]} 63. Kb7 {[%emt 0:06:08]} Rc6 {[%emt 0:00:07]} 0-1

[Event "XII Paracin Festival 2019"]
[Site "Paracin"]
[Date "2019.07.09"]
[Round "6.4"]
[White "Vishnu Prasanna. V"]
[Black "Ratkovic, Miloje"]
[Result "1/2-1/2"]
[ECO "B18"]
[WhiteElo "2505"]
[BlackElo "2416"]
[Annotator "ChessBase"]
[PlyCount "113"]
[EventDate "2019.07.05"]
[EventType "swiss"]
[EventCountry "SRB"]
[SourceTitle "playchess.com"]
[Source "ChessBase"]
[SourceQuality "1"]
[TimeControl "5400+30"]

1. e4 {[%emt 0:00:00]} c6 {[%emt 0:00:00]} 2. d4 {[%emt 0:00:00]} d5 {[%emt 0:00:00]} 3. Nd2 {[%emt 0:00:00]} dxe4 {[%emt 0:00:25]} 4. Nxe4 {[%emt 0:00:00]} Bf5 {[%emt 0:01:15]} 5. Ng3 {[%emt 0:00:01]} Bg6 {[%emt 0:00:08]} 6. c3 {[%emt 0:00:13]} e6 {[%emt 0:01:26]} 7. Nh3 {[%emt 0:00:16]} Bd6 {[%emt 0:02:12]} 8. Nf4 {[%emt 0:01:00]} Bxf4 {[%emt 0:00:31]} 9. Bxf4 {[%emt 0:00:12]} Nf6 {[%emt 0:00:45]} 10. h4 {[%emt 0:01:53]} h6 {[%emt 0:02:58]} 11. h5 {[%emt 0:00:21]} Bh7 {[%emt 0:00:07]} 12. Qb3 {[%emt 0:00:10]} Qe7 {[%emt 0:04:20]} 13. Be2 {[%emt 0:01:31]} O-O {[%emt 0:01:41]} 14. O-O {[%emt 0:00:17]} a5 {[%emt 0:04:54]} 15. c4 {[%emt 0:00:35]} a4 {[%emt 0:02:39]} 16. Qc3 {[%emt 0:01:00]} Nbd7 {[%emt 0:03:16]} 17. Rfe1 {[%emt 0:03:42]} Rfc8 {[%emt 0:05:02]} 18. Rac1 {[%emt 0:10:10]} Qd8 {[%emt 0:04:33]} 19. Bf3 {[%emt 0:11:38]} Qb6 {[%emt 0:13:13]} 20. Re3 {[%emt 0:11:17]} Qa6 {[%emt 0:05:29]} 21. Qb4 {[%emt 0:03:04]} Re8 {[%emt 0:02:55]} 22. Rce1 {[%emt 0:03:06]} Nb6 {[%emt 0:03:06]} 23. Be2 {[%emt 0:08:47]} Nbd7 {[%emt 0:06:58]} 24. Nf1 {[%emt 0:07:55]} Qa7 {[%emt 0:04:33]} 25. Rd1 {[%emt 0:08:05]} b5 {[%emt 0:05:42]} 26. Bf3 {[%emt 0:06:27]} bxc4 {[%emt 0:05:48]} 27. Bxc6 {[%emt 0:01:24]} Nd5 {[%emt 0:01:44]} 28. Bxd5 {[%emt 0:00:35]} exd5 {[%emt 0:00:07]} 29. Qd6 {[%emt 0:04:34]} Nf6 {[%emt 0:02:58]} 30. Rxe8+ {[%emt 0:08:13]} Rxe8 {[%emt 0:00:10]} 31. Bxh6 {[%emt 0:02:35]} Re6 {[%emt 0:01:48]} 32. Qd8+ {[%emt 0:00:11]} Re8 {[%emt 0:00:06]} 33. Qd6 {[%emt 0:00:06]} a3 {[%emt 0:03:30]} 34. bxa3 {[%emt 0:02:03]} Qa4 {[%emt 0:02:18]} 35. Rc1 {[%emt 0:02:00]} Ne4 {[%emt 0:01:18]} 36. Qxd5 {[%emt 0:00:19]} gxh6 {[%emt 0:00:11]} 37. Qxc4 {[%emt 0:00:39]} Qxa3 {[%emt 0:01:15]} 38. Re1 {[%emt 0:00:46]} Ra8 {[%emt 0:01:17]} 39. d5 {[%emt 0:01:05]} Qa4 {[%emt 0:00:11]} 40. Qc1 {[%emt 0:00:40]} Qxa2 {[%emt 0:00:19]} 41. Qf4 {[%emt 0:00:07]} Qxd5 {[%emt 0:02:24]} 42. Qxh6 {[%emt 0:00:09]} Qf5 {[%emt 0:00:29]} 43. f3 {[%emt 0:01:21]} Qc5+ {[%emt 0:02:02]} 44. Kh2 {[%emt 0:00:45]} Qd6+ {[%emt 0:01:22]} 45. Qxd6 {[%emt 0:00:06]} Nxd6 {[%emt 0:00:04]} 46. g4 {[%emt 0:00:18]} Ra3 {[%emt 0:00:03]} 47. Re3 {[%emt 0:00:10]} Ra2+ {[%emt 0:00:54]} 48. Kg3 {[%emt 0:00:06]} Nc4 {[%emt 0:00:49]} 49. Re8+ {[%emt 0:00:24]} Kg7 {[%emt 0:00:02]} 50. Ne3 {[%emt 0:00:05]} Nxe3 {[%emt 0:00:56]} 51. Rxe3 {[%emt 0:00:07]} Ra4 {[%emt 0:00:16]} 52. Rc3 {[%emt 0:00:10]} f6 {[%emt 0:00:21]} 53. Rc7+ {[%emt 0:00:46]} Kh6 {[%emt 0:00:58]} 54. f4 {[%emt 0:00:29]} Be4 {[%emt 0:01:03]} 55. Kh4 {[%emt 0:01:04]} Ba8 {[%emt 0:01:07]} 56. Rf7 {[%emt 0:00:19]} Rxf4 {[%emt 0:00:22]} 57. Rxf6+ {[%emt 0:00:04]} 1/2-1/2

[Event "XII Paracin Festival 2019"]
[Site "Paracin"]
[Date "2019.07.09"]
[Round "6.5"]
[White "Gadimbayli, Abdulla"]
[Black "Lorparizangeneh, Shahin"]
[Result "1/2-1/2"]
[ECO "B30"]
[WhiteElo "2414"]
[BlackElo "2494"]
[Annotator "ChessBase"]
[PlyCount "111"]
[EventDate "2019.07.05"]
[EventType "swiss"]
[EventCountry "SRB"]
[SourceTitle "playchess.com"]
[Source "ChessBase"]
[SourceQuality "1"]
[TimeControl "5400+30"]

1. e4 {[%emt 0:07:41]} c5 {[%emt 0:01:22]} 2. Nf3 {[%emt 0:00:08]} Nc6 {[%emt 0:00:06]} 3. Bb5 {[%emt 0:00:07]} d6 {[%emt 0:00:05]} 4. Bxc6+ {[%emt 0:00:36]} bxc6 {[%emt 0:00:05]} 5. O-O {[%emt 0:01:03]} e5 {[%emt 0:00:22]} 6. c3 {[%emt 0:03:00]} f5 {[%emt 0:00:16]} 7. exf5 {[%emt 0:08:17]} Be7 {[%emt 0:04:02]} 8. d4 {[%emt 0:07:21]} e4 {[%emt 0:04:09]} 9. Nfd2 {[%emt 0:09:33]} Nf6 {[%emt 0:03:19]} 10. dxc5 {[%emt 0:11:15]} d5 {[%emt 0:00:55]} 11. Nb3 {[%emt 0:04:21]} Bxf5 {[%emt 0:07:14]} 12. Nd4 {[%emt 0:03:56]} Bd7 {[%emt 0:01:10]} 13. b4 {[%emt 0:00:36]} O-O {[%emt 0:01:03]} 14. Bf4 {[%emt 0:08:46]} Qe8 {[%emt 0:06:22]} 15. Na3 {[%emt 0:06:15]} Nh5 {[%emt 0:10:49]} 16. Be3 {[%emt 0:09:51]} Nf4 {[%emt 0:15:09]} 17. Bxf4 {[%emt 0:03:51]} Rxf4 {[%emt 0:00:02]} 18. c4 {[%emt 0:05:21]} Bf6 {[%emt 0:02:48]} 19. Nac2 {[%emt 0:02:30]} dxc4 {[%emt 0:01:27]} 20. Qe2 {[%emt 0:01:43]} Qf7 {[%emt 0:00:55]} 21. g3 {[%emt 0:00:57]} Bh3 {[%emt 0:00:59]} 22. Qe3 {[%emt 0:01:56]} Bxf1 {[%emt 0:03:01]} 23. Rxf1 {[%emt 0:00:05]} Rg4 {[%emt 0:00:59]} 24. Nxc6 {[%emt 0:01:25]} Qd5 {[%emt 0:06:38]} 25. b5 {[%emt 0:01:12]} Rg5 {[%emt 0:02:10]} 26. h4 {[%emt 0:00:22]} Rh5 {[%emt 0:00:53]} 27. a4 {[%emt 0:00:43]} Qxc5 {[%emt 0:09:50]} 28. Qxe4 {[%emt 0:00:10]} Rf8 {[%emt 0:00:29]} 29. Rd1 {[%emt 0:00:50]} Bxh4 {[%emt 0:03:08]} 30. Ne3 {[%emt 0:00:16]} Bf6 {[%emt 0:02:27]} 31. Qxc4+ {[%emt 0:00:44]} Qxc4 {[%emt 0:00:17]} 32. Nxc4 {[%emt 0:00:01]} Rc5 {[%emt 0:00:57]} 33. Nd6 {[%emt 0:00:58]} Ra8 {[%emt 0:03:27]} 34. Rb1 {[%emt 0:00:36]} Kf8 {[%emt 0:05:27]} 35. Kg2 {[%emt 0:00:27]} h5 {[%emt 0:02:38]} 36. Rb4 {[%emt 0:00:31]} a6 {[%emt 0:00:38]} 37. Ne4 {[%emt 0:00:20]} Rc1 {[%emt 0:00:18]} 38. Nxf6 {[%emt 0:00:37]} gxf6 {[%emt 0:00:02]} 39. Nd4 {[%emt 0:00:12]} axb5 {[%emt 0:00:19]} 40. axb5 {[%emt 0:00:05]} Rb8 {[%emt 0:00:58]} 41. b6 {[%emt 0:01:06]} Kf7 {[%emt 0:00:52]} 42. Rb5 {[%emt 0:00:22]} Rc4 {[%emt 0:00:52]} 43. Nf5 {[%emt 0:00:48]} Rc6 {[%emt 0:00:28]} 44. Nh4 {[%emt 0:00:27]} Rbxb6 {[%emt 0:01:46]} 45. Rxh5 {[%emt 0:00:06]} Rc2 {[%emt 0:00:13]} 46. Rh7+ {[%emt 0:00:25]} Kg8 {[%emt 0:00:42]} 47. Rh5 {[%emt 0:00:02]} Kf7 {[%emt 0:00:24]} 48. Rh7+ {[%emt 0:00:01]} Ke6 {[%emt 0:00:18]} 49. Ng6 {[%emt 0:00:18]} Rbb2 {[%emt 0:00:47]} 50. Nf4+ {[%emt 0:00:01]} Kf5 {[%emt 0:00:40]} 51. Rh5+ {[%emt 0:00:30]} Ke4 {[%emt 0:00:14]} 52. Nh3 {[%emt 0:00:01]} Rd2 {[%emt 0:00:38]} 53. Rh4+ {[%emt 0:00:30]} Ke5 {[%emt 0:00:07]} 54. Rh5+ {[%emt 0:00:16]} Ke4 {[%emt 0:00:15]} 55. Rh4+ {[%emt 0:00:05]} Ke5 {[%emt 0:00:07]} 56. Rh5+ {[%emt 0:00:04]} 1/2-1/2

[Event "XII Paracin Festival 2019"]
[Site "Paracin"]
[Date "2019.07.09"]
[Round "6.6"]
[White "Kosic, Dragan"]
[Black "Janzelj, Tim"]
[Result "1-0"]
[ECO "D05"]
[WhiteElo "2482"]
[BlackElo "2416"]
[Annotator "ChessBase"]
[PlyCount "95"]
[EventDate "2019.07.05"]
[EventType "swiss"]
[EventCountry "SRB"]
[SourceTitle "playchess.com"]
[Source "ChessBase"]
[SourceQuality "1"]
[TimeControl "5400+30"]

1. d4 {[%emt 0:00:00]} Nf6 {[%emt 0:02:25]} 2. Nf3 {[%emt 0:00:29]} e6 {[%emt 0:00:45]} 3. e3 {[%emt 0:00:30]} d5 {[%emt 0:01:36]} 4. Bd3 {[%emt 0:00:21]} Nbd7 {[%emt 0:02:29]} 5. b3 {[%emt 0:01:39]} Bb4+ {[%emt 0:03:06]} 6. Bd2 {[%emt 0:04:34]} Bd6 {[%emt 0:03:02]} 7. Bc3 {[%emt 0:01:55]} Ne4 {[%emt 0:02:06]} 8. Bb2 {[%emt 0:00:21]} f5 {[%emt 0:05:15]} 9. c4 {[%emt 0:01:08]} c6 {[%emt 0:04:46]} 10. O-O {[%emt 0:01:49]} Qf6 {[%emt 0:01:01]} 11. Nc3 {[%emt 0:08:20]} g5 {[%emt 0:06:12]} 12. Bxe4 {[%emt 0:07:56]} fxe4 {[%emt 0:01:55]} 13. Nd2 {[%emt 0:00:28]} Qh6 {[%emt 0:00:59]} 14. g3 {[%emt 0:01:10]} Nf6 {[%emt 0:03:53]} 15. f3 {[%emt 0:02:18]} exf3 {[%emt 0:06:52]} 16. Qxf3 {[%emt 0:01:28]} O-O {[%emt 0:00:22]} 17. Qe2 {[%emt 0:00:40]} Bd7 {[%emt 0:11:21]} 18. e4 {[%emt 0:04:50]} e5 {[%emt 0:00:34]} 19. exd5 {[%emt 0:03:34]} exd4 {[%emt 0:07:30]} 20. Nce4 {[%emt 0:00:20]} Rae8 {[%emt 0:04:32]} 21. Bxd4 {[%emt 0:05:06]} Ng4 {[%emt 0:06:29]} 22. Qg2 {[%emt 0:09:49]} cxd5 {[%emt 0:01:30]} 23. Nxd6 {[%emt 0:07:30]} Rxf1+ {[%emt 0:00:26]} 24. Rxf1 {[%emt 0:04:00]} Qxd6 {[%emt 0:00:13]} 25. Qxd5+ {[%emt 0:04:05]} Qxd5 {[%emt 0:00:11]} 26. cxd5 {[%emt 0:00:02]} Re2 {[%emt 0:01:20]} 27. Nf3 {[%emt 0:00:52]} Rxa2 {[%emt 0:01:30]} 28. h3 {[%emt 0:06:41]} Nh6 {[%emt 0:00:15]} 29. Nxg5 {[%emt 0:00:27]} Nf5 {[%emt 0:04:55]} 30. Bf2 {[%emt 0:00:59]} Re2 {[%emt 0:02:55]} 31. g4 {[%emt 0:03:45]} Ne3 {[%emt 0:00:19]} 32. Bxe3 {[%emt 0:01:00]} Rxe3 {[%emt 0:00:01]} 33. Rf7 {[%emt 0:00:50]} Re5 {[%emt 0:09:20]} 34. Rxd7 {[%emt 0:00:16]} Rxg5 {[%emt 0:00:01]} 35. d6 {[%emt 0:00:33]} Rd5 {[%emt 0:00:14]} 36. Kf2 {[%emt 0:00:55]} a5 {[%emt 0:04:27]} 37. Ke3 {[%emt 0:00:51]} b5 {[%emt 0:00:17]} 38. Ke4 {[%emt 0:00:20]} Rd1 {[%emt 0:00:07]} 39. Ke5 {[%emt 0:01:01]} Re1+ {[%emt 0:01:00]} 40. Kd5 {[%emt 0:00:18]} Rd1+ {[%emt 0:02:47]} 41. Kc6 {[%emt 0:00:28]} Rc1+ {[%emt 0:00:04]} 42. Kxb5 {[%emt 0:00:40]} Rc3 {[%emt 0:00:01]} 43. Rc7 {[%emt 0:03:32]} Rxb3+ {[%emt 0:00:50]} 44. Kc4 {[%emt 0:00:00]} Rb4+ {[%emt 0:00:38]} 45. Kc5 {[%emt 0:00:27]} Rb1 {[%emt 0:00:07]} 46. Rc8+ {[%emt 0:00:51]} Kf7 {[%emt 0:00:25]} 47. d7 {[%emt 0:00:22]} Rc1+ 48. Kb5 1-0

[Event "XII Paracin Festival 2019"]
[Site "Paracin"]
[Date "2019.07.09"]
[Round "6.7"]
[White "McPhillips, Joseph"]
[Black "Petrov, Martin"]
[Result "1/2-1/2"]
[ECO "A04"]
[WhiteElo "2412"]
[BlackElo "2480"]
[Annotator "ChessBase"]
[PlyCount "33"]
[EventDate "2019.07.05"]
[EventType "swiss"]
[EventCountry "SRB"]
[SourceTitle "playchess.com"]
[Source "ChessBase"]
[SourceQuality "1"]
[TimeControl "5400+30"]

1. Nf3 {[%emt 0:03:12]} c5 {[%emt 0:00:14]} 2. b3 {[%emt 0:00:39]} Nc6 {[%emt 0:02:50]} 3. Bb2 {[%emt 0:00:18]} Nf6 {[%emt 0:00:28]} 4. e3 {[%emt 0:01:02]} g6 {[%emt 0:03:51]} 5. Be2 {[%emt 0:01:11]} Bg7 {[%emt 0:00:03]} 6. O-O {[%emt 0:00:26]} d5 {[%emt 0:02:01]} 7. d4 {[%emt 0:00:50]} cxd4 {[%emt 0:02:37]} 8. Nxd4 {[%emt 0:00:18]} O-O {[%emt 0:01:43]} 9. c4 {[%emt 0:01:35]} Nxd4 {[%emt 0:04:49]} 10. Bxd4 {[%emt 0:00:19]} dxc4 {[%emt 0:05:22]} 11. Bxc4 {[%emt 0:00:38]} Kh8 {[%emt 0:04:10]} 12. Kh1 {[%emt 0:00:03]} Kg8 {[%emt 0:00:04]} 13. Kg1 {[%emt 0:00:04]} Kh8 {[%emt 0:00:04]} 14. Kh1 {[%emt 0:00:03]} Kg8 {[%emt 0:00:04]} 15. Kg1 {[%emt 0:00:03]} Kh8 {[%emt 0:00:04]} 16. Kh1 {[%emt 0:00:04]} Kg8 {[%emt 0:00:04]} 17. Kg1 1/2-1/2

[Event "XII Paracin Festival 2019"]
[Site "Paracin"]
[Date "2019.07.09"]
[Round "6.8"]
[White "Peng, Xiongjian"]
[Black "Martic, Ivan"]
[Result "1-0"]
[ECO "B43"]
[WhiteElo "2467"]
[BlackElo "2392"]
[Annotator "ChessBase"]
[PlyCount "71"]
[EventDate "2019.07.05"]
[EventType "swiss"]
[EventCountry "SRB"]
[SourceTitle "playchess.com"]
[Source "ChessBase"]
[SourceQuality "1"]
[TimeControl "5400+30"]

1. e4 {[%emt 0:00:00]} c5 {[%emt 0:00:00]} 2. Nf3 {[%emt 0:00:00]} e6 {[%emt 0:00:00]} 3. d4 {[%emt 0:00:00]} cxd4 {[%emt 0:00:06]} 4. Nxd4 {[%emt 0:00:00]} a6 {[%emt 0:01:54]} 5. Nc3 {[%emt 0:00:00]} Qc7 {[%emt 0:00:29]} 6. g3 {[%emt 0:00:15]} Bb4 {[%emt 0:00:27]} 7. Nb3 {[%emt 0:01:35]} Nf6 {[%emt 0:02:02]} 8. Bg2 {[%emt 0:00:17]} O-O {[%emt 0:04:10]} 9. O-O {[%emt 0:00:40]} d6 {[%emt 0:03:32]} 10. Ne2 {[%emt 0:02:57]} Nbd7 {[%emt 0:01:55]} 11. a3 {[%emt 0:04:53]} Bc5 {[%emt 0:00:14]} 12. Nxc5 {[%emt 0:00:05]} Nxc5 {[%emt 0:04:23]} 13. Nc3 {[%emt 0:00:05]} Rb8 {[%emt 0:04:07]} 14. Bf4 {[%emt 0:05:40]} e5 {[%emt 0:04:02]} 15. Bg5 {[%emt 0:00:08]} Ncd7 {[%emt 0:00:52]} 16. Qd2 {[%emt 0:01:25]} h6 {[%emt 0:01:56]} 17. Be3 {[%emt 0:00:16]} b5 {[%emt 0:05:50]} 18. Rfd1 {[%emt 0:04:33]} Nb6 {[%emt 0:00:52]} 19. Qxd6 {[%emt 0:01:21]} Qxd6 {[%emt 0:00:12]} 20. Rxd6 {[%emt 0:00:03]} Nc4 {[%emt 0:00:19]} 21. Bc5 {[%emt 0:00:18]} Re8 {[%emt 0:11:37]} 22. Rdd1 {[%emt 0:10:38]} Nd7 {[%emt 0:06:07]} 23. b3 {[%emt 0:02:22]} Nxc5 {[%emt 0:00:32]} 24. bxc4 {[%emt 0:00:05]} bxc4 {[%emt 0:00:14]} 25. Rd5 {[%emt 0:00:11]} Nd7 {[%emt 0:02:02]} 26. Rad1 Nf6 {[%emt 0:18:30]} 27. Rc5 {[%emt 0:01:53]} Bg4 {[%emt 0:03:27]} 28. f3 {[%emt 0:02:14]} Rbc8 {[%emt 0:01:22]} 29. Ra5 {[%emt 0:03:18]} Be6 {[%emt 0:03:10]} 30. Rxa6 {[%emt 0:03:40]} Nd7 {[%emt 0:01:57]} 31. Rxe6 {[%emt 0:02:17]} fxe6 {[%emt 0:00:27]} 32. Rxd7 {[%emt 0:00:06]} Red8 {[%emt 0:00:28]} 33. Rb7 {[%emt 0:10:48]} Rd2 {[%emt 0:03:23]} 34. Rb2 {[%emt 0:00:08]} Kf8 {[%emt 0:00:31]} 35. Bf1 {[%emt 0:00:36]} Ke7 {[%emt 0:00:15]} 36. Be2 {[%emt 0:00:19]} 1-0